fUSD/lending_fUSD_20250414
["ID","MTS","AMOUNT","RATE_DAILY","PERIOD"]
[357970965,1744631448135,-500.0,0.00019726,2]
[357970966,1744631448147,-29790.49,0.00019726,2]
[357970967,1744631448157,-500.0,0.00019726,2]
[357970968,1744631448167,-500.0,0.00019726,2]
[357970969,1744631448176,-500.0,0.00019726,2]
[357970970,1744631448186,-500.0,0.00019726,2]
[357970971,1744631448197,-500.0,0.00019726,2]
[357970972,1744631448206,-500.0,0.00019726,2]
[357970973,1744631448216,-662.89,0.00019726,2]
[357970974,1744631448225,-643.52104889,0.00019726,2]
[357970975,1744631448235,-3564.6,0.00019726,2]
[357970976,1744631448245,-500.0,0.00019726,2]
[357970977,1744631448254,-155.26344649,0.00019726,2]
[357970978,1744631448263,-500.0,0.00019726,2]
[357970979,1744631448273,-528.43,0.00019726,2]
[357970980,1744631448282,-1028.38,0.00019726,2]
[357970981,1744631448292,-500.0,0.00019726,2]
[357970982,1744631448301,-500.0,0.00019726,2]
[357970983,1744631448311,-196.37,0.00019726,2]
[357970984,1744631448321,-500.0,0.00019726,2]
[357970985,1744631448330,-399.7,0.00019726,2]
[357970986,1744631448339,-500.0,0.00019726,2]
[357970987,1744631448349,-677.94,0.00019726,2]
[357970988,1744631448360,-500.0,0.00019726,2]
[357970989,1744631448369,-500.0,0.00019726,2]
[357970990,1744631448379,-500.0,0.00019726,2]
[357970991,1744631448388,-1405.71,0.00019726,2]
[357970992,1744631448398,-500.0,0.00019726,2]
[357970993,1744631448408,-500.0,0.00019726,2]
[357970994,1744631448417,-500.0,0.00019726,2]
[357970995,1744631448427,-500.0,0.00019726,2]
[357970996,1744631448437,-368.13,0.00019726,2]
[357970997,1744631448446,-500.0,0.00019726,2]
[357970998,1744631448456,-1452.88,0.00019726,2]
[357970999,1744631448466,-500.0,0.00019726,2]
[357971000,1744631448476,-500.0,0.00019726,2]
[357971001,1744631448486,-500.0,0.00019726,2]
[357971002,1744631448496,-566.47,0.00019726,2]
[357971003,1744631448505,-1000.0,0.00019726,2]
[357971004,1744631448515,-358.73,0.00019726,2]
[357971005,1744631448525,-500.0,0.00019726,2]
[357971006,1744631448535,-150.0,0.00019737,2]
[357971007,1744631448545,-150.0,0.00019749,2]
[357971008,1744631448555,-150.0,0.0001975,2]
[357971009,1744631448564,-150.0,0.0001975,2]
[357971010,1744631448574,-150.0,0.00019752,2]
[357971011,1744631448584,-150.0,0.00019771,2]
[357971012,1744631448594,-150.0,0.00019773,2]
[357971013,1744631448603,-150.0,0.00019774,2]
[357971014,1744631448613,-150.0,0.00019775,2]
[357971015,1744631448623,-150.0,0.00019778,2]
[357971016,1744631448633,-1927.66712298,0.00019778,2]
[357971017,1744631448644,-150.0,0.00019792,2]
[357971018,1744631448654,-150.0,0.00019796,2]
[357971019,1744631448664,-1482.3766796,0.00019799,2]
[357971020,1744631448674,-150.0,0.00019799,2]
[357971021,1744631448683,-246.6137,0.000198,2]
[357971022,1744631448693,-150.0,0.000198,2]
[357971023,1744631448703,-150.0,0.000198,2]
[357971024,1744631448713,-400.22761646,0.00019809,2]
[357971025,1744631448723,-12500.0,0.00019812,2]
[357971026,1744631448733,-150.0,0.00019817,2]
[357971027,1744631448743,-12500.0,0.00019821,2]
[357971028,1744631448752,-150.0,0.00019822,2]
[357971029,1744631448762,-150.0,0.00019827,2]
[357971030,1744631448771,-150.0,0.00019827,2]
[357971031,1744631448780,-12500.0,0.0001983,2]
[357971032,1744631448790,-12500.0,0.00019838,2]
[357971033,1744631448800,-1927.66712298,0.00019839,2]
[357971034,1744631448813,-12500.0,0.00019847,2]
[357971035,1744631448823,-150.0,0.00019854,2]
[357971036,1744631448832,-12500.0,0.00019856,2]
[357971037,1744631448843,-500.0,0.00019863,2]
[357971038,1744631448853,-500.0,0.00019863,2]
[357971039,1744631448863,-500.0,0.00019863,2]
[357971040,1744631448873,-500.0,0.00019863,2]
[357971041,1744631448883,-500.0,0.00019863,2]
[357971042,1744631448895,-500.0,0.00019863,2]
[357971043,1744631448905,-500.0,0.00019863,2]
[357971044,1744631448915,-500.0,0.00019863,2]
[357971045,1744631448926,-500.0,0.00019863,2]
[357971046,1744631448936,-500.0,0.00019863,2]
[357971047,1744631448947,-500.0,0.00019863,2]
[357971048,1744631448957,-500.0,0.00019863,2]
[357971049,1744631448967,-500.0,0.00019863,2]
[357971050,1744631448977,-359.93000969,0.00019863,2]
[357971051,1744631448987,-500.0,0.00019863,2]
[357971052,1744631448997,-250.0,0.00019863,2]
[357971053,1744631449007,-500.0,0.00019863,2]
[357971054,1744631449017,-500.0,0.00019863,2]
[357971055,1744631449026,-500.0,0.00019863,2]
[357971056,1744631449036,-500.0,0.00019863,2]
[357971057,1744631449046,-300.0,0.00019863,2]
[357971058,1744631449055,-12500.0,0.00019865,2]
[357971059,1744631449065,-150.0,0.0001987,2]
[357971060,1744631449074,-150.0,0.00019872,2]
[357971061,1744631449083,-504.0037658,0.00019873,2]
[357971062,1744631449093,-12500.0,0.00019874,2]
[357971063,1744631449103,-5749.48454875,0.0001988,2]
[357971064,1744631449112,-12500.0,0.00019882,2]
[357971065,1744631449121,-191.71584393,0.0001989,2]
[357971066,1744631449131,-150.0,0.00019891,2]
[357971067,1744631449140,-12500.0,0.00019891,2]
[357971068,1744631449150,-2726.418,0.00019899,2]
[357971069,1744631449162,-500.0,0.00019899,2]
[357971070,1744631449172,-12500.0,0.000199,2]
[357971071,1744631449181,-189.27754714,0.000199,2]
[357971072,1744631449191,-12500.0,0.000199,2]
[357971073,1744631449200,-1760.46444872,0.000199,2]
[357971074,1744631449210,-400.22761646,0.000199,2]
[357971075,1744631449219,-1927.66712298,0.000199,2]
[357971076,1744631449229,-375.23358628,0.000199,2]
[357971077,1744631449238,-203.61373272,0.000199,2]
[357971078,1744631449248,-150.0,0.00019923,2]
[357971079,1744631449257,-300.0,0.00019927,2]
[357971080,1744631449266,-150.0,0.00019931,2]
[357971081,1744631449276,-259.22715001,0.00019936,2]
[357971082,1744631449285,-150.0,0.00019939,2]
[357971083,1744631449295,-150.0,0.00019951,2]
[357971084,1744631449305,-150.0,0.00019951,2]
[357971085,1744631449314,-150.0,0.00019959,2]
[357971086,1744631449324,-538.77045901,0.00019973,2]
[357971087,1744631449333,-500.0,0.00019973,2]
[357971088,1744631449343,-502.248758,0.00019973,2]
[357971089,1744631449352,-246.67040996,0.00019973,2]
[357971090,1744631449362,-360.26739713,0.00019973,2]
[357971091,1744631449371,-500.0,0.00019973,2]
[357971092,1744631449381,-578.81599954,0.00019973,2]
[357971093,1744631449390,-500.0,0.00019973,2]
[357971094,1744631449400,-501.49922872,0.00019973,2]
[357971095,1744631449409,-503.66283739,0.00019973,2]
[357971096,1744631449419,-500.0,0.00019973,2]
[357971097,1744631449429,-150.0,0.0001998,2]
[357971098,1744631449438,-150.0,0.00019983,2]
[357971099,1744631449448,-150.0,0.00019989,2]
[357971100,1744631449456,-370.48724768,0.00019989,2]
[357971101,1744631449465,-500.0,0.00019998,2]
[357971102,1744631449473,-4702.12122351,0.00019999,2]
[357971103,1744631449483,-248.88953447,0.00019999,5]
[357971104,1744631449493,-500.0,0.00019999,2]
[357971105,1744631449503,-529.73676513,0.00019999,2]
[357971106,1744631449512,-903.19,0.00019999,2]
[357971107,1744631449523,-500.0,0.00019999,2]
[357971108,1744631449533,-500.0,0.00019999,2]
[357971109,1744631449543,-500.0,0.00019999,2]
[357971110,1744631449552,-500.0,0.00019999,2]
[357971111,1744631449561,-500.0,0.00019999,2]
[357971112,1744631449571,-500.0,0.00019999,2]
[357971113,1744631449580,-500.0,0.00019999,2]
[357971114,1744631449589,-500.0,0.00019999,2]
[357971115,1744631449599,-500.0,0.00019999,2]
[357971116,1744631449608,-500.0,0.00019999,2]
[357971117,1744631449618,-500.0,0.00019999,2]
[357971118,1744631449627,-500.0,0.00019999,2]
[357971119,1744631449637,-500.0,0.00019999,2]
[357971120,1744631449647,-500.0,0.00019999,2]
[357971121,1744631449656,-500.0,0.00019999,2]
[357971122,1744631449666,-500.0,0.00019999,2]
[357971123,1744631449675,-500.0,0.00019999,2]
[357971124,1744631449684,-500.0,0.00019999,2]
[357971125,1744631449694,-500.0,0.00019999,2]
[357971126,1744631449703,-500.0,0.00019999,2]
[357971127,1744631449712,-380.22,0.00019999,2]
[357971128,1744631449723,-757.0,0.0002,2]
[357971129,1744631449732,-96080.23174524,0.0002,2]
[357971130,1744631449742,-1206113.35100224,0.0002,2]
[357971131,1744631449756,-1500.0,0.0002,2]
[357971132,1744631449773,-848.87133736,0.0002,2]
[357971133,1744631664525,-250.0,0.00018916,2]
[357971134,1744631664548,-58.3687,0.0001895,2]
[357971135,1744631675793,181.72,0.00025,30]
[357971137,1744631892578,543.88,0.00016973,2]
[357971138,1744632178704,-513.1732,0.00018875,2]
[357971139,1744632345122,-493.49,0.00018859,2]
[357971140,1744632345145,-486.8268,0.00018875,2]
[357971141,1744632345169,-151.0,0.00018876,2]
[357971142,1744632345189,-1170.12392386,0.0001895,2]
[357971147,1744632636302,-1274.12,0.00018686,2]
[357971148,1744632636313,-317.13,0.00018748,2]
[357971149,1744632636323,-216.36,0.00018828,2]
[357971150,1744632636333,-185.43530819,0.0001895,2]
[357971151,1744632636343,-256.86737614,0.0001895,2]
[357971152,1744632636356,-685.0,0.00019,2]
[357971154,1744632636365,-250.0,0.00019,2]
[357971155,1744632636375,-774.16,0.00019016,2]
[357971157,1744632636391,-300.0,0.00019176,2]
[357971159,1744632636401,-300.0,0.00019176,2]
[357971161,1744632636411,-171.56213906,0.00019177,2]
[357971163,1744632636420,-3085.4607155,0.00019177,2]
[357971213,1744632637516,-7730.79121055,0.00019177,2]
[357971214,1744632637526,-500.0,0.00019178,2]
[357971215,1744632637535,-640.7,0.00019178,2]
[357971216,1744632637545,-500.0,0.00019178,2]
[357971217,1744632637555,-500.0,0.00019178,2]
[357971218,1744632637565,-500.0,0.00019178,2]
[357971219,1744632637575,-500.0,0.00019178,2]
[357971221,1744632637585,-510.45,0.00019178,2]
[357971222,1744632637594,-493.68,0.00019178,2]
[357971223,1744632637604,-805.95,0.00019178,2]
[357971224,1744632637613,-500.0,0.00019178,2]
[357971225,1744632637623,-401.2,0.00019178,2]
[357971226,1744632637633,-500.0,0.00019178,2]
[357971227,1744632637648,-500.0,0.00019178,2]
[357971228,1744632637658,-342.35768567,0.00019178,2]
[357971229,1744632637676,-157.64231433,0.00019178,2]
[357971230,1744632637686,-500.0,0.00019178,2]
[357971231,1744632637695,-500.0,0.00019178,2]
[357971232,1744632637704,-500.0,0.00019178,2]
[357971233,1744632637714,-287.83368992,0.00019178,2]
[357971234,1744632637723,-500.0,0.00019178,2]
[357971235,1744632637733,-500.0,0.00019178,2]
[357971236,1744632637743,-500.0,0.00019178,2]
[357971237,1744632637752,-649.46,0.00019178,2]
[357971238,1744632637762,-500.0,0.00019178,2]
[357971239,1744632637772,-500.0,0.00019178,2]
[357971240,1744632637781,-500.0,0.00019178,2]
[357971241,1744632637791,-192.18,0.00019178,2]
[357971242,1744632637801,-500.0,0.00019178,2]
[357971243,1744632637811,-500.0,0.00019178,2]
[357971244,1744632637821,-300.85,0.00019178,2]
[357971245,1744632637831,-500.0,0.00019178,2]
[357971247,1744632637840,-500.0,0.00019178,2]
[357971249,1744632637850,-500.0,0.00019178,2]
[357971250,1744632637859,-500.0,0.00019178,2]
[357971251,1744632637871,-500.0,0.00019178,2]
[357971252,1744632637880,-500.0,0.00019178,2]
[357971253,1744632637891,-500.0,0.00019178,2]
[357971254,1744632637901,-500.0,0.00019178,2]
[357971255,1744632637911,-691.24,0.00019178,2]
[357971256,1744632637921,-500.0,0.00019178,2]
[357971257,1744632637931,-500.0,0.00019178,2]
[357971258,1744632637940,-500.0,0.00019178,2]
[357971259,1744632637950,-500.0,0.00019178,2]
[357971260,1744632637961,-500.0,0.00019178,2]
[357971261,1744632637971,-500.0,0.00019178,2]
[357971262,1744632637981,-500.0,0.00019178,2]
[357971263,1744632637991,-450.43,0.00019178,2]
[357971264,1744632638002,-500.0,0.00019178,2]
[357971265,1744632638013,-608.95956989,0.00019178,2]
[357971266,1744632638023,-500.0,0.00019178,2]
[357971267,1744632638034,-507.12524012,0.00019178,2]
[357971268,1744632638045,-500.0,0.00019178,2]
[357971269,1744632638055,-500.0,0.00019178,2]
[357971270,1744632638066,-551.73,0.00019178,2]
[357971271,1744632638076,-500.0,0.00019178,2]
[357971272,1744632638086,-500.0,0.00019178,2]
[357971273,1744632638096,-601.37,0.00019178,2]
[357971274,1744632638105,-384.26143993,0.00019178,2]
[357971275,1744632638115,-241.15,0.00019178,2]
[357971276,1744632638125,-500.0,0.00019178,2]
[357971277,1744632638135,-496.45,0.00019178,2]
[357971278,1744632638146,-199.7853455,0.00019178,2]
[357971279,1744632638155,-176.89006173,0.00019178,2]
[357971280,1744632638165,-500.0,0.00019178,2]
[357971281,1744632638174,-500.0,0.00019178,2]
[357971282,1744632638184,-500.0,0.00019178,2]
[357971283,1744632638194,-1000.0,0.00019178,2]
[357971284,1744632638203,-500.0,0.00019178,2]
[357971285,1744632638214,-306.40127736,0.00019178,2]
[357971286,1744632638229,-160.84,0.00019178,2]
[357971287,1744632638238,-500.0,0.00019178,2]
[357971288,1744632638247,-500.0,0.00019178,2]
[357971289,1744632638257,-500.0,0.00019178,2]
[357971290,1744632638267,-259.05700476,0.00019178,2]
[357971291,1744632638276,-500.0,0.00019178,2]
[357971292,1744632638286,-500.0,0.00019178,2]
[357971293,1744632638298,-500.0,0.00019178,2]
[357971294,1744632638516,-500.0,0.00019178,2]
[357971295,1744632638525,-212.58,0.00019178,2]
[357971296,1744632638535,-500.0,0.00019178,2]
[357971297,1744632638545,-500.0,0.00019178,2]
[357971298,1744632638555,-500.0,0.00019178,2]
[357971299,1744632638564,-500.0,0.00019178,2]
[357971300,1744632638574,-500.0,0.00019178,2]
[357971301,1744632638583,-789.71,0.00019178,2]
[357971302,1744632638592,-500.0,0.00019178,2]
[357971303,1744632638602,-500.0,0.00019178,2]
[357971304,1744632638612,-500.0,0.00019178,2]
[357971305,1744632638622,-500.0,0.00019178,2]
[357971306,1744632638631,-500.0,0.00019178,2]
[357971307,1744632638642,-510.74019234,0.00019178,2]
[357971308,1744632638652,-500.0,0.00019178,2]
[357971309,1744632638661,-500.0,0.00019178,2]
[357971310,1744632638671,-500.0,0.00019178,2]
[357971311,1744632638680,-1273.32,0.00019178,2]
[357971312,1744632638690,-349.65,0.00019178,2]
[357971313,1744632638699,-11427.90121227,0.00019178,2]
[357971314,1744632639935,-17121.31878773,0.00019178,2]
[357971315,1744632639945,-527.14851133,0.00019178,2]
[357971316,1744632639955,-226.97,0.00019178,2]
[357971317,1744632639966,-500.0,0.00019178,2]
[357971318,1744632639975,-248.01431448,0.00019178,2]
[357971319,1744632639985,-500.0,0.00019178,2]
[357971320,1744632639995,-611.02493405,0.00019178,2]
[357971321,1744632640005,-500.0,0.00019178,2]
[357971322,1744632640015,-500.0,0.00019178,2]
[357971323,1744632640024,-500.0,0.00019178,2]
[357971324,1744632640035,-613.2,0.00019178,2]
[357971325,1744632640045,-500.0,0.00019178,2]
[357971326,1744632640055,-500.0,0.00019178,2]
[357971327,1744632640065,-513.77402179,0.00019178,2]
[357971328,1744632640074,-500.0,0.00019178,2]
[357971329,1744632640084,-500.0,0.00019178,2]
[357971330,1744632640093,-500.0,0.00019178,2]
[357971331,1744632640103,-500.0,0.00019178,2]
[357971332,1744632640114,-200.48967401,0.00019178,2]
[357971333,1744632640124,-500.0,0.00019178,2]
[357971334,1744632640135,-3551.53,0.00019178,2]
[357971335,1744632640146,-500.0,0.00019178,2]
[357971336,1744632640156,-325.11774081,0.00019178,2]
[357971337,1744632640166,-500.0,0.00019178,2]
[357971338,1744632640175,-553.52918989,0.00019178,2]
[357971339,1744632640185,-500.0,0.00019178,2]
[357971340,1744632640195,-250.77941756,0.00019178,2]
[357971342,1744632640205,-500.0,0.00019178,2]
[357971344,1744632640215,-380.71761589,0.00019178,2]
[357971346,1744632640227,-500.0,0.00019178,2]
[357971347,1744632640237,-500.0,0.00019178,2]
[357971349,1744632640247,-500.0,0.00019178,2]
[357971350,1744632640256,-500.0,0.00019178,2]
[357971351,1744632640266,-203.08,0.00019178,2]
[357971352,1744632640276,-500.0,0.00019178,2]
[357971353,1744632640286,-500.0,0.00019178,2]
[357971354,1744632640295,-500.0,0.00019178,2]
[357971355,1744632640306,-500.0,0.00019178,2]
[357971356,1744632640316,-500.0,0.00019178,2]
[357971357,1744632640325,-500.0,0.00019178,2]
[357971358,1744632640335,-500.0,0.00019178,2]
[357971359,1744632640345,-500.0,0.00019178,2]
[357971360,1744632640353,-500.0,0.00019178,2]
[357971361,1744632640363,-667.73,0.00019178,2]
[357971362,1744632640372,-500.0,0.00019178,2]
[357971363,1744632640381,-500.0,0.00019178,2]
[357971364,1744632640530,-500.0,0.00019178,2]
[357971365,1744632640578,-507.01884421,0.00019178,2]
[357971366,1744632640588,-500.0,0.00019178,2]
[357971367,1744632640597,-500.0,0.00019178,2]
[357971368,1744632640608,-500.0,0.00019178,2]
[357971369,1744632640618,-500.0,0.00019178,2]
[357971370,1744632640628,-500.0,0.00019178,2]
[357971371,1744632640638,-500.0,0.00019178,2]
[357971372,1744632640652,-500.0,0.00019178,2]
[357971373,1744632640662,-500.0,0.00019178,2]
[357971374,1744632640672,-187.47,0.00019178,2]
[357971375,1744632640681,-500.0,0.00019178,2]
[357971376,1744632640695,-500.0,0.00019178,2]
[357971377,1744632640705,-500.0,0.00019178,2]
[357971378,1744632640715,-500.0,0.00019178,2]
[357971379,1744632640725,-347.45,0.00019178,2]
[357971380,1744632640734,-500.0,0.00019178,2]
[357971381,1744632640743,-500.0,0.00019178,2]
[357971382,1744632640753,-500.0,0.00019178,2]
[357971383,1744632640762,-500.0,0.00019178,2]
[357971384,1744632640771,-500.0,0.00019178,2]
[357971385,1744632640780,-500.0,0.00019178,2]
[357971386,1744632640790,-1230.0,0.00019178,2]
[357971387,1744632640799,-500.0,0.00019178,2]
[357971388,1744632640808,-500.0,0.00019178,2]
[357971389,1744632640817,-500.0,0.00019178,2]
[357971390,1744632640827,-500.0,0.00019178,2]
[357971391,1744632640837,-593.2,0.00019178,2]
[357971392,1744632640847,-1271.27,0.00019178,2]
[357971393,1744632640856,-500.0,0.00019178,2]
[357971394,1744632640866,-500.0,0.00019178,2]
[357971395,1744632640876,-500.0,0.00019178,2]
[357971396,1744632640885,-500.0,0.00019178,2]
[357971397,1744632640895,-500.0,0.00019178,2]
[357971398,1744632640905,-500.0,0.00019178,2]
[357971399,1744632640915,-500.0,0.00019178,2]
[357971400,1744632640924,-500.3464815,0.00019178,2]
[357971401,1744632640933,-603.03690998,0.00019178,2]
[357971402,1744632640943,-535.19663594,0.00019178,2]
[357971403,1744632640952,-500.0,0.00019178,2]
[357971404,1744632640961,-500.0,0.00019178,2]
[357971405,1744632640970,-500.0,0.00019178,2]
[357971406,1744632640979,-200.0,0.00019178,2]
[357971407,1744632640987,-500.0,0.00019178,2]
[357971408,1744632640996,-500.0,0.00019178,2]
[357971409,1744632641005,-507.15322763,0.00019178,2]
[357971410,1744632641015,-500.0,0.00019178,2]
[357971411,1744632641023,-150.0,0.00019178,2]
[357971412,1744632641033,-500.0,0.00019178,2]
[357971413,1744632641042,-500.0,0.00019178,2]
[357971414,1744632641051,-500.0,0.00019178,2]
[357971415,1744632641060,-500.0,0.00019178,2]
[357971416,1744632641070,-500.0,0.00019178,2]
[357971417,1744632641079,-500.0,0.00019178,2]
[357971418,1744632641088,-500.0,0.00019178,2]
[357971419,1744632641098,-500.0,0.00019178,2]
[357971420,1744632641107,-500.0,0.00019178,2]
[357971421,1744632641117,-500.0,0.00019178,2]
[357971422,1744632641126,-500.0,0.00019178,2]
[357971423,1744632641136,-467.53266097,0.00019178,2]
[357971424,1744632641147,-500.0,0.00019178,2]
[357971425,1744632641156,-500.0,0.00019178,2]
[357971426,1744632641166,-543.88,0.00019237,2]
[357971427,1744632641175,-184.59,0.00019338,2]
[357971428,1744632641186,-150.08535619,0.00019352,2]
[357971429,1744632641195,-150.08535617,0.0001943,2]
[357971430,1744632641205,-500.0,0.00019452,2]
[357971431,1744632641215,-520.31,0.00019452,2]
[357971432,1744632641228,-805.95,0.00019452,2]
[357971433,1744632641238,-500.0,0.00019452,2]
[357971434,1744632641248,-500.0,0.00019452,2]
[357971435,1744632641258,-161.02,0.00019452,2]
[357971436,1744632641270,-448.3,0.00019452,2]
[357971437,1744632641279,-500.0,0.00019452,2]
[357971438,1744632641290,-206.31,0.00019452,2]
[357971439,1744632641300,-500.0,0.00019452,2]
[357971440,1744632641311,-162.56,0.00019452,2]
[357971441,1744632641322,-500.0,0.00019452,2]
[357971442,1744632641331,-500.0,0.00019452,2]
[357971443,1744632641341,-500.0,0.00019452,2]
[357971444,1744632641351,-691.24,0.00019452,2]
[357971445,1744632641360,-500.0,0.00019452,2]
[357971446,1744632641370,-462.1057391,0.00019452,2]
[357971447,1744632641380,-442.16,0.00019452,2]
[357971448,1744632641390,-380.93825309,0.00019452,2]
[357971449,1744632641405,-500.0,0.00019452,2]
[357971450,1744632641415,-262.58,0.00019452,2]
[357971451,1744632641424,-500.0,0.00019452,2]
[357971452,1744632641434,-500.0,0.00019452,2]
[357971453,1744632641443,-500.0,0.00019452,2]
[357971454,1744632641453,-500.0,0.00019452,2]
[357971455,1744632641463,-500.0,0.00019452,2]
[357971456,1744632641472,-1000.0,0.00019452,2]
[357971457,1744632641482,-500.0,0.00019452,2]
[357971458,1744632641491,-500.0,0.00019452,2]
[357971459,1744632641500,-500.0,0.00019452,2]
[357971460,1744632641510,-789.71,0.00019452,2]
[357971461,1744632641519,-500.0,0.00019452,2]
[357971462,1744632641529,-312.51950477,0.00019452,2]
[357971463,1744632641539,-500.0,0.00019452,2]
[357971464,1744632641549,-500.0,0.00019452,2]
[357971465,1744632641558,-1273.32,0.00019452,2]
[357971466,1744632641567,-28549.22,0.00019452,2]
[357971467,1744632641577,-500.0,0.00019452,2]
[357971468,1744632641586,-500.0,0.00019452,2]
[357971469,1744632641595,-613.2,0.00019452,2]
[357971470,1744632641605,-408.28655351,0.00019452,2]
[357971471,1744632641615,-500.0,0.00019452,2]
[357971472,1744632641624,-500.0,0.00019452,2]
[357971473,1744632641634,-227.19,0.00019452,2]
[357971474,1744632641646,-3551.53,0.00019452,2]
[357971475,1744632641656,-500.0,0.00019452,2]
[357971476,1744632641665,-424.45,0.00019452,2]
[357971477,1744632641675,-500.0,0.00019452,2]
[357971478,1744632641685,-500.0,0.00019452,2]
[357971479,1744632641695,-500.0,0.00019452,2]
[357971480,1744632641704,-622.38005136,0.00019452,2]
[357971481,1744632641715,-500.0,0.00019452,2]
[357971482,1744632641725,-500.0,0.00019452,2]
[357971483,1744632641735,-667.73,0.00019452,2]
[357971484,1744632641744,-500.0,0.00019452,2]
[357971485,1744632641754,-500.0,0.00019452,2]
[357971486,1744632641764,-500.0,0.00019452,2]
[357971487,1744632641773,-500.0,0.00019452,2]
[357971488,1744632641783,-500.0,0.00019452,2]
[357971489,1744632641792,-500.0,0.00019452,2]
[357971490,1744632641801,-500.0,0.00019452,2]
[357971491,1744632641811,-500.0,0.00019452,2]
[357971492,1744632641821,-500.0,0.00019452,2]
[357971493,1744632641831,-1230.0,0.00019452,2]
[357971494,1744632641840,-1271.27,0.00019452,2]
[357971495,1744632641849,-593.2,0.00019452,2]
[357971496,1744632641860,-500.0,0.00019452,2]
[357971497,1744632641870,-500.0,0.00019452,2]
[357971498,1744632641880,-500.0,0.00019452,2]
[357971499,1744632641890,-559.74,0.00019452,2]
[357971500,1744632641901,-500.0,0.00019452,2]
[357971501,1744632641911,-500.0,0.00019452,2]
[357971502,1744632641921,-500.0,0.00019452,2]
[357971503,1744632641931,-500.0,0.00019452,2]
[357971504,1744632641941,-500.0,0.00019452,2]
[357971505,1744632641951,-170.81,0.00019469,2]
[357971506,1744632641960,-150.08535617,0.00019509,2]
[357971507,1744632641971,-150.08535617,0.00019587,2]
[357971508,1744632641980,-1000.0,0.000196,2]
[357971509,1744632641991,-150.08535617,0.00019665,2]
[357971510,1744632642000,-848.16001264,0.000197,2]
[357971511,1744632642010,-730.31,0.00019716,2]
[357971512,1744632642020,-500.0,0.00019725,2]
[357971513,1744632642030,-500.0,0.00019725,2]
[357971514,1744632642040,-500.0,0.00019726,2]
[357971515,1744632642049,-805.95,0.00019726,2]
[357971516,1744632642059,-500.0,0.00019726,2]
[357971517,1744632642069,-500.0,0.00019726,2]
[357971518,1744632642079,-500.0,0.00019726,2]
[357971519,1744632642090,-500.0,0.00019726,2]
[357971520,1744632642100,-500.0,0.00019726,2]
[357971521,1744632642109,-500.0,0.00019726,2]
[357971522,1744632642120,-500.0,0.00019726,2]
[357971523,1744632642131,-691.24,0.00019726,2]
[357971524,1744632642141,-337.6163074,0.00019726,2]
[357971525,1744632642151,-500.0,0.00019726,2]
[357971526,1744632642162,-500.0,0.00019726,2]
[357971527,1744632642172,-500.0,0.00019726,2]
[357971528,1744632642182,-500.0,0.00019726,2]
[357971529,1744632642191,-500.0,0.00019726,2]
[357971530,1744632642204,-500.0,0.00019726,2]